bitfinex/quotes_ETHUSD_20250213
["timestamp","ask_amount","ask_price","bid_price","bid_amount"]
[1739441177161,3.99639,2685.0,2684.6,3.72488]
[1739441177364,3.99639,2685.0,2684.5,4.3652518]
[1739441177565,3.99639,2685.0,2684.5,8.0903218]
[1739441177766,4.50663,2684.8,2684.3,6.72528]
[1739441178065,0.55,2684.5,2684.0,3.72571]
[1739441178267,9.5551,2684.5,2684.1,3.7256]
[1739441178576,9.5551,2684.5,2683.6,4.3431518]
[1739441178577,3.72566,2684.1,2683.6,4.3431518]
[1739441178785,3.72566,2684.1,2683.3,8.0697818]
[1739441178786,3.72585,2684.0,2683.3,8.0697818]
[1739441178984,0.7677,2683.9,2683.4,0.80697818]
[1739441179198,0.7677,2683.9,2683.7,3.72615]
[1739441179393,0.7677,2683.9,2683.6,3.72632]
[1739441179594,0.7677,2683.9,2683.5,3.72647]
[1739441179595,4.49365,2683.9,2683.5,3.72647]
[1739441179804,0.7677,2683.9,2683.5,3.72647]
[1739441180613,0.7677,2683.9,2683.4,3.34638527]
[1739441180781,0.7677,2683.9,2683.6,3.72623]
[1739441181493,0.7677,2683.9,2683.4,3.0]
[1739441181695,0.0075,2683.7,2683.0,5.12172497]
[1739441181915,0.0075,2683.7,2683.1,3.72694]
[1739441181916,0.55,2683.6,2683.1,3.72694]
[1739441182432,4.27634,2683.6,2683.1,3.72694]
[1739441182628,0.55,2683.6,2683.2,3.72686]
[1739441182792,0.5575,2683.7,2683.3,3.72673]
[1739441182989,0.5575,2683.7,2683.4,3.72657]
[1739441183202,0.55,2683.7,2683.4,3.72657]
[1739441183532,0.55,2683.7,2683.5,3.72644]
[1739441183834,0.55,2683.7,2683.2,7.45357]
[1739441184002,3.1782807,2683.7,2683.2,4.9843095]
[1739441184333,3.72634,2683.6,2683.0,8.04486497]
[1739441184535,3.72661,2683.4,2683.0,4.31782497]
[1739441184831,3.72661,2683.4,2683.0,0.74877317]
[1739441185036,3.72686,2683.3,2682.8,3.72735]
[1739441185185,3.72686,2683.3,2682.8,7.45472]
[1739441185692,0.0075,2683.3,2682.9,3.7273]
[1739441186244,5.28,2683.4,2683.1,3.72693]
[1739441186390,5.28,2683.4,2683.1,3.72691]
[1739441186590,5.28,2683.4,2683.0,8.0686218]
[1739441186790,5.28,2683.4,2683.1,3.72694]
[1739441187435,5.28,2683.4,2683.0,4.3415518]
[1739441187738,5.28,2683.4,2683.0,8.613034]
[1739441188640,5.28,2683.4,2683.1,3.72694]
[1739441188953,5.28,2683.4,2683.0,8.613034]
[1739441189123,5.28,2683.4,2683.1,3.72702]
[1739441189327,5.28,2683.4,2683.0,8.613034]
[1739441189328,9.76688,2683.5,2683.0,8.613034]
[1739441189530,6.0404,2683.5,2683.1,3.727]
[1739441189949,6.0404,2683.5,2683.0,8.613034]
[1739441190152,6.0404,2683.5,2683.1,3.72695]
[1739441190458,3.72674,2683.4,2683.0,4.113444]
[1739441190820,3.72674,2683.4,2682.8,3.72734]
[1739441190821,3.72677,2683.3,2682.8,3.72734]
[1739441191046,3.72675,2683.3,2682.8,3.72734]
[1739441191246,3.72703,2683.1,2682.7,3.5690518]
[1739441191429,1.1021,2683.0,2682.7,3.5690518]
[1739441192552,4.82931,2683.0,2682.6,3.72772]
[1739441193064,1.1021,2683.0,2682.6,3.72762]
[1739441193217,1.1021,2683.0,2682.5,3.0]
[1739441193423,1.1021,2683.0,2682.6,3.72765]
[1739441194067,1.1021,2683.0,2682.5,6.72786]
[1739441194226,4.82934,2683.0,2682.5,6.72786]
[1739441194426,4.82934,2683.0,2682.4,3.5690518]
[1739441194427,3.72738,2682.9,2682.4,7.2970418]
[1739441195830,4.82934,2683.0,2682.4,7.2970418]
[1739441196135,3.72769,2682.7,2682.4,3.5690518]
[1739441196323,3.72769,2682.7,2682.2,6.72821]
[1739441196324,4.51684,2682.6,2682.2,3.0]
[1739441196529,4.51684,2682.6,2682.1,8.1223718]
[1739441196530,3.72789,2682.5,2682.1,7.2974518]
[1739441196723,0.7891,2682.6,2682.2,3.72822]
[1739441196949,4.51686,2682.6,2682.1,7.2974518]
[1739441197208,4.51683,2682.6,2682.1,3.5690518]
[1739441197404,3.72793,2682.5,2682.1,3.5690518]
[1739441197765,3.72808,2682.4,2682.0,0.75791938]
[1739441197961,3.72808,2682.4,2681.9,3.72868]
[1739441198796,3.72808,2682.4,2681.9,3.0]
[1739441198977,3.72836,2682.2,2681.8,3.5690518]
[1739441199181,0.775,2682.3,2681.8,3.5690518]
[1739441199182,3.72846,2682.1,2681.8,3.5690518]
[1739441199369,0.272,2682.0,2681.7,0.73486622]
[1739441200869,0.272,2682.0,2681.7,4.46381622]
[1739441201068,0.272,2682.0,2681.7,0.73486622]
[1739441201473,0.7678,2681.9,2681.7,0.73486622]
[1739441202968,4.49651,2681.9,2681.7,0.73486622]
[1739441204166,3.72883,2681.8,2681.7,0.73486622]
[1739441204367,0.7678,2681.9,2681.2,7.2986218]
[1739441204601,3.72905,2681.7,2681.2,3.5690518]
[1739441204839,0.7678,2681.9,2681.2,3.5690518]
[1739441204840,3.72912,2681.6,2681.2,3.5690518]
[1739441205054,0.7584,2681.5,2680.9,8.04019975]
[1739441205260,3.72946,2681.4,2680.9,8.92082973]
[1739441205468,3.72953,2681.3,2680.9,8.92082973]
[1739441205936,3.72946,2681.4,2680.9,8.17975178]
[1739441206763,3.72956,2681.3,2680.9,8.17975178]
[1739441206978,0.7584,2681.5,2680.9,8.17975178]
[1739441207267,3.73004,2681.0,2680.4,3.73067]
[1739441207407,0.272,2680.9,2680.4,3.73069]
[1739441207608,5.552,2680.9,2680.5,3.0]
[1739441207850,5.552,2680.9,2680.5,6.73051]
[1739441208153,5.552,2680.9,2680.6,3.7305]
[1739441208309,5.552,2680.9,2680.4,6.73069]
[1739441208510,5.552,2680.9,2680.5,3.73064]
[1739441208910,5.552,2680.9,2680.6,3.73044]
[1739441209454,5.552,2680.9,2680.5,6.7306]
[1739441209970,5.552,2680.9,2680.5,3.7306]
[1739441211005,5.552,2680.9,2680.5,7.46116]
[1739441211206,5.552,2680.9,2680.4,3.0]
[1739441211522,0.272,2680.8,2680.6,3.5690518]
[1739441211741,0.272,2680.8,2680.6,7.2994918]
[1739441213085,0.272,2680.8,2680.4,3.73064]
[1739441213475,4.00235,2680.8,2680.3,7.2998818]
[1739441213647,0.7858,2680.7,2680.2,4.53103]
[1739441214047,0.7858,2680.7,2680.2,4.53096]
[1739441214275,4.51623,2680.7,2680.2,3.73095]
[1739441214475,4.51623,2680.7,2680.2,6.73099]
[1739441214850,3.73052,2680.6,2680.2,6.73099]
[1739441215086,4.51623,2680.7,2680.1,3.0]
[1739441215288,0.0075,2680.5,2680.1,6.73115]
[1739441216693,0.5575,2680.6,2680.2,3.73097]
[1739441217298,4.28802,2680.6,2680.2,3.73097]
[1739441218362,0.5575,2680.6,2680.2,3.73097]
[1739441218563,0.7858,2680.7,2680.3,3.73078]
[1739441218764,0.7858,2680.7,2680.3,3.73088]
[1739441218965,9.79617,2680.7,2680.3,3.73088]
[1739441219280,9.79617,2680.7,2680.0,7.3003118]
[1739441219464,3.7305,2680.6,2680.2,3.73105]
[1739441219666,6.0658,2680.7,2680.3,3.73084]
[1739441219900,6.0658,2680.7,2680.2,3.73095]
[1739441220065,3.73052,2680.6,2680.1,3.73114]
[1739441220268,7.46113,2680.6,2680.1,3.73114]
[1739441220577,3.7307,2680.5,2680.0,7.3003018]
[1739441220773,3.73079,2680.4,2680.0,7.3003018]
[1739441220990,4.50343,2680.5,2679.9,0.74577435]
[1739441221296,3.73085,2680.4,2679.9,7.47718435]
[1739441222108,3.73101,2680.3,2679.9,3.74577435]
[1739441222273,3.73114,2680.2,2679.7,7.3007918]
[1739441222477,0.7727,2680.5,2679.1,0.33129569]
[1739441222478,3.73148,2679.9,2679.8,0.76242676]
[1739441222680,3.73167,2679.8,2679.4,3.5690518]
[1739441222886,3.73167,2679.8,2679.1,3.8767524]
[1739441222887,8.06905,2679.2,2679.1,0.1442724]
[1739441223066,8.07655,2679.2,2679.1,2.4e-06]
[1739441223266,4.48948,2678.6,2677.9,3.73418]
[1739441223489,4.00652,2678.5,2677.8,0.73823222]
[1739441223807,0.273,2678.5,2678.0,0.34688401]
[1739441223961,0.7561,2678.6,2678.0,0.34688401]
[1739441224161,0.273,2678.5,2678.2,3.5690518]
[1739441224779,0.273,2678.5,2678.0,0.34688401]
[1739441224983,0.273,2678.5,2678.1,3.73387]
[1739441225179,0.273,2678.5,2678.1,3.73397]
[1739441225385,0.273,2678.5,2678.0,3.73404]
[1739441225779,0.273,2678.5,2678.1,3.7339]
[1739441225989,0.273,2678.4,2678.2,3.73384]
[1739441226191,0.4443976,2678.7,2678.1,3.73397]
[1739441226402,0.273,2678.6,2678.1,3.73397]
[1739441226709,0.273,2678.5,2678.2,3.73382]
[1739441226863,0.273,2678.4,2678.3,3.73371]
[1739441227062,0.273,2678.4,2678.2,7.3028718]
[1739441227063,0.273,2678.4,2678.2,3.5690518]
[1739441227267,0.273,2678.4,2678.2,7.3028718]
[1739441227696,0.4443976,2678.7,2678.4,3.73348]
[1739441227879,0.273,2678.6,2678.4,3.73348]
[1739441228081,0.273,2678.5,2677.9,3.5690518]
[1739441228280,3.73367,2678.4,2677.9,3.5690518]
[1739441228483,0.273,2678.5,2677.9,3.5690518]
[1739441228809,0.273,2678.5,2678.0,3.73412]
[1739441229010,0.273,2678.5,2678.1,3.73398]
[1739441229217,4.00644,2678.5,2677.9,7.3032918]
[1739441229411,0.273,2678.5,2677.9,4.25356449]
[1739441229612,0.273,2678.5,2678.1,3.7339]
[1739441229810,0.273,2678.5,2678.2,3.73375]
[1739441230111,0.273,2678.5,2678.1,3.7339]
[1739441230542,3.74055,2678.8,2678.0,0.7649]
[1739441230543,0.7561,2678.9,2678.6,3.73328]
[1739441230817,0.273,2678.8,2678.6,3.73319]
[1739441230974,0.273,2678.8,2678.5,3.5690518]
[1739441231372,0.273,2678.8,2678.6,3.73317]
[1739441231976,0.273,2678.9,2678.8,3.73301]
[1739441232614,0.273,2678.9,2678.7,3.73314]
[1739441233004,0.273,2678.9,2678.5,4.3419518]
[1739441233204,4.00589,2678.9,2678.5,4.3419518]
[1739441233428,4.00589,2678.9,2678.2,3.5690518]
[1739441233429,3.74057,2678.8,2678.2,3.5690518]
[1739441233716,3.73338,2678.6,2678.1,4.54189]
[1739441234278,0.7596,2678.7,2678.1,0.808]
[1739441234517,0.7596,2678.7,2678.2,3.73385]
[1739441234723,4.49279,2678.7,2678.2,3.73385]
[1739441235080,0.7596,2678.7,2678.3,3.7337]
[1739441235378,4.49276,2678.7,2678.2,3.73381]
[1739441236695,0.7596,2678.7,2678.3,3.73364]
[1739441236878,0.7596,2678.7,2678.4,3.73349]
[1739441237084,0.7596,2678.7,2678.3,3.73364]
[1739441237284,4.49282,2678.7,2678.2,3.73384]
[1739441237595,0.7596,2678.7,2678.2,3.73384]
[1739441237800,0.7596,2678.7,2678.0,3.0]
[1739441238007,0.274,2678.6,2678.2,3.73385]
[1739441238310,5.28,2679.0,2678.6,3.73318]
[1739441238311,6.0597,2679.0,2678.6,3.73318]
[1739441238484,0.274,2678.9,2678.6,3.73318]
[1739441238821,6.0597,2679.0,2678.9,3.73287]
[1739441239022,5.28,2679.0,2678.8,3.73297]
[1739441239325,0.274,2678.9,2678.8,3.73297]
[1739441239727,5.28,2679.0,2678.9,3.73287]
[1739441239884,5.554,2679.0,2678.9,3.73287]
[1739441240321,5.554,2679.0,2678.8,7.4659]
[1739441240484,5.554,2679.0,2678.8,3.73293]
[1739441241012,5.554,2679.0,2678.5,4.17786073]
[1739441241210,0.7569,2678.9,2678.3,0.8062]
[1739441241417,0.7569,2678.9,2678.6,3.73329]
[1739441243699,0.7569,2678.9,2678.6,7.46651]
[1739441243894,0.8257,2679.2,2678.8,3.73301]
[1739441244127,0.273,2679.1,2679.0,3.73265]
[1739441244285,0.7544,2679.4,2678.8,0.8114]
[1739441244495,0.7544,2679.4,2679.3,3.73231]
[1739441244710,1.0274,2679.4,2679.3,3.73231]
[1739441245094,0.273,2679.4,2679.3,3.73231]
[1739441245784,5.28,2679.5,2679.3,3.73231]
[1739441245984,0.273,2679.5,2679.2,3.73243]
[1739441247017,0.273,2679.5,2678.9,0.8019]
[1739441247388,0.273,2679.5,2679.1,3.73253]
[1739441247636,0.273,2679.5,2679.2,3.73244]
[1739441248133,0.273,2679.5,2679.1,3.73253]
[1739441248733,0.273,2679.5,2679.2,3.73238]
[1739441248913,0.273,2679.5,2679.4,3.73217]
[1739441249300,0.273,2679.5,2679.3,0.34757656]
[1739441249857,0.273,2679.5,2679.3,4.07986656]
[1739441250032,0.273,2679.5,2679.4,0.34757656]
[1739441250348,4.80363,2679.5,2679.4,0.34757656]
[1739441251323,4.80363,2679.5,2679.1,3.73258]
[1739441251718,1.0716,2679.5,2679.1,3.73258]
[1739441251897,0.273,2679.5,2679.4,3.73217]
[1739441252770,0.273,2679.5,2679.4,0.34757656]
[1739441255652,0.273,2679.5,2679.3,0.34757656]
[1739441256950,4.00506,2679.5,2679.3,0.34757656]
[1739441257279,3.73217,2679.4,2679.3,0.34757656]
[1739441257552,3.73217,2679.4,2678.9,0.8019]
[1739441257553,4.51927,2679.4,2679.0,3.73273]
[1739441257711,0.7871,2679.4,2679.0,3.73273]
[1739441258507,0.7871,2679.4,2679.1,0.34827437]
[1739441258707,4.00506,2679.5,2679.1,0.34827437]
[1739441258708,0.273,2679.5,2679.1,0.34827437]
[1739441259055,0.273,2679.5,2679.3,3.73223]
[1739441259256,0.272,2679.5,2679.1,3.76329181]
[1739441259453,0.272,2679.5,2679.4,3.7321]
[1739441260956,0.272,2679.5,2679.4,4.08037437]
[1739441262956,0.272,2679.5,2679.4,0.34827437]
[1739441264162,0.272,2679.5,2679.3,0.34827437]
[1739441264336,0.272,2679.5,2679.3,4.08054437]
[1739441264731,0.272,2679.5,2679.4,3.73217]
[1739441265648,0.272,2679.5,2679.4,4.08044437]
[1739441266051,0.272,2679.5,2679.4,0.34827437]
[1739441268528,0.272,2679.5,2679.4,4.08044437]
[1739441270259,0.272,2679.5,2679.4,0.34827437]
[1739441270832,0.272,2679.5,2679.4,3.73217]
[1739441271268,0.272,2679.5,2679.4,4.08118257]
[1739441271475,0.272,2679.5,2679.4,4.90647357]
[1739441271768,5.28,2680.0,2679.4,1.17430357]
[1739441271953,0.272,2679.9,2679.7,3.73174]
[1739441272155,6.0772,2680.1,2679.9,3.73147]
[1739441272346,0.272,2680.0,2679.9,3.73147]
[1739441273884,0.7573,2680.3,2679.9,4.08050902]
[1739441274182,0.272,2680.2,2680.1,3.7312]
[1739441274343,0.272,2680.2,2679.9,3.93757732]
[1739441274543,0.272,2680.2,2680.0,3.73132]
[1739441274753,0.272,2680.2,2680.0,3.73134]
[1739441275163,0.272,2680.2,2680.1,3.7312]
[1739441275366,0.272,2680.2,2680.0,3.14555488]
[1739441275688,4.00284,2680.4,2680.0,3.14555488]
[1739441276283,0.272,2680.4,2680.1,3.7312]
[1739441276495,0.272,2680.4,2680.1,3.73112]
[1739441276671,0.272,2680.4,2680.0,3.14555488]
[1739441276863,0.272,2680.4,2679.9,0.20616732]
[1739441277064,0.272,2680.4,2680.0,3.73127]
[1739441278091,4.00281,2680.4,2679.9,3.93755732]
[1739441278673,4.00281,2680.4,2679.9,7.66896732]
[1739441279389,4.00281,2680.4,2680.0,3.73133]
[1739441279546,0.272,2680.4,2680.1,3.73116]
[1739441280485,0.272,2680.4,2679.9,0.20616732]
[1739441280688,0.272,2680.4,2680.2,3.731]
[1739441280848,6.0373,2680.6,2680.3,3.73092]
[1739441281048,6.3093,2680.6,2680.2,3.73098]
[1739441281971,6.3093,2680.6,2680.2,3.73103]
[1739441282653,6.3093,2680.6,2680.3,3.73083]
[1739441283702,6.3093,2680.6,2680.0,0.8229]
[1739441283868,6.3093,2680.6,2680.4,3.73076]
[1739441284259,6.3093,2680.6,2680.1,3.73109]
[1739441284464,6.3093,2680.6,2680.3,3.73085]
[1739441284801,6.3093,2680.6,2680.4,3.73076]
[1739441285101,0.7573,2680.6,2680.5,3.73064]
[1739441285307,0.272,2680.6,2680.5,3.73064]
[1739441285464,0.272,2680.7,2680.6,3.73046]
[1739441285665,0.272,2680.7,2680.5,4.51502]
[1739441286103,0.272,2680.7,2680.5,8.24558]
[1739441286296,0.272,2680.7,2680.6,3.7305]
[1739441286664,0.272,2680.7,2680.5,4.51502]
[1739441286865,0.272,2680.7,2680.6,3.7305]
[1739441287070,4.52414,2681.0,2680.6,3.7305]
[1739441287372,4.52414,2681.0,2680.5,4.51502]
[1739441287373,0.272,2680.9,2680.5,4.51502]
[1739441287616,0.272,2680.9,2680.5,4.51504]
[1739441287909,0.272,2680.9,2680.5,4.51493]
[1739441288104,0.272,2680.9,2680.6,3.73041]
[1739441288692,0.272,2680.9,2680.6,3.7305]
[1739441289280,0.272,2680.9,2680.5,0.7844]
[1739441289490,0.272,2680.9,2680.6,3.73042]
[1739441289697,0.272,2680.9,2680.7,3.73026]
[1739441289863,0.7941,2681.0,2680.7,3.73026]
[1739441290065,1.0661,2681.0,2680.7,3.73026]
[1739441290289,1.0661,2681.0,2680.6,3.7305]
[1739441291013,4.79613,2681.0,2680.6,3.7305]
[1739441291969,4.79613,2681.0,2680.6,3.73043]
[1739441292165,1.0661,2681.0,2680.7,3.7303]
[1739441292425,4.79605,2681.0,2680.6,3.73048]
[1739441294014,4.79605,2681.0,2680.6,3.73049]
[1739441294198,1.0661,2681.0,2680.6,3.73049]
[1739441294598,4.79611,2681.0,2680.6,3.73044]
[1739441295108,1.0661,2681.0,2680.6,3.73044]
[1739441295871,4.79618,2681.0,2680.5,4.515]
[1739441296098,4.79618,2681.0,2680.6,3.73048]
[1739441296708,4.79618,2681.0,2680.5,4.51502]
[1739441296900,4.79618,2681.0,2680.6,3.73048]
[1739441297101,0.7941,2681.0,2680.5,0.7844]
[1739441297433,0.272,2681.1,2680.5,1.18127168]
[1739441297717,4.00184,2681.1,2680.7,3.73025]
[1739441297885,0.272,2681.1,2680.7,3.73025]
[1739441298089,0.272,2681.1,2680.7,3.73028]
[1739441298420,4.00182,2681.1,2680.7,3.73028]
[1739441298775,4.00182,2681.1,2680.6,3.73038]
[1739441298977,4.00182,2681.1,2680.7,3.73033]
[1739441300015,0.272,2681.1,2680.8,3.73015]
[1739441300704,0.272,2681.1,2680.7,3.73036]
[1739441300885,3.73001,2681.0,2680.6,3.73041]
[1739441301079,4.48073,2680.7,2680.4,3.0]
[1739441301821,0.7503,2680.7,2680.5,0.34806405]
[1739441302394,0.7503,2680.7,2680.5,4.07862405]
[1739441303724,0.7503,2680.7,2680.5,0.34806405]
[1739441304117,0.7503,2680.7,2680.4,10.46146]
[1739441304435,0.7503,2680.7,2680.4,6.73069]
[1739441304838,0.7932,2681.0,2680.7,3.73029]
[1739441305410,4.52316,2681.0,2680.5,3.73052]
[1739441305605,4.52316,2681.0,2680.4,3.0]
[1739441305842,4.52316,2681.0,2680.5,3.73056]
[1739441306047,3.73009,2680.9,2680.4,6.73071]
[1739441307665,3.73009,2680.9,2680.5,0.34831054]
[1739441308240,4.52316,2681.0,2680.5,0.34831054]
[1739441308439,4.52316,2681.0,2680.5,4.07889054]
[1739441308654,4.52316,2681.0,2680.6,0.34831054]
[1739441309567,3.73012,2680.9,2680.6,0.34831054]
[1739441309861,3.73012,2680.9,2680.7,0.34831054]
[1739441311379,3.73012,2680.9,2680.5,3.73057]
[1739441311676,0.7932,2681.0,2680.5,3.73057]
[1739441311880,4.52317,2681.0,2680.6,3.73044]
[1739441312399,4.52317,2681.0,2680.4,6.7307]
[1739441312400,3.7302,2680.9,2680.4,6.7307]
[1739441312557,3.7303,2680.8,2680.6,0.34858846]
[1739441312756,3.73036,2680.7,2680.6,0.34858846]
[1739441312957,4.49846,2680.7,2680.6,0.34858846]
[1739441313267,0.7681,2680.7,2680.6,0.34858846]
[1739441314739,4.49846,2680.7,2680.6,0.34858846]
[1739441316791,0.7681,2680.7,2680.6,0.34858846]
[1739441317161,0.7681,2680.7,2680.6,0.31161288]
[1739441319260,4.49846,2680.7,2680.6,0.31161288]
[1739441319456,0.7681,2680.7,2680.6,0.31161288]
[1739441320160,0.7681,2680.7,2680.1,0.75037809]
[1739441320364,3.73087,2680.4,2680.0,4.48287]
[1739441320546,3.73087,2680.4,2680.0,0.7516]
[1739441320963,3.73087,2680.4,2679.9,3.73139]
[1739441321124,3.73087,2680.4,2680.0,3.73134]
[1739441321458,0.7653,2680.3,2679.9,4.485259]
[1739441321661,4.49623,2680.3,2679.9,4.485259]
[1739441322232,4.49623,2680.3,2679.9,3.73139]
[1739441322748,4.49623,2680.3,2679.9,3.0]
[1739441322749,3.7311,2680.2,2679.9,3.0]
[1739441322951,3.7311,2680.2,2679.8,3.0]
[1739441323153,3.7311,2680.2,2679.8,6.73155]
[1739441323364,0.7653,2680.3,2679.8,6.73155]
[1739441323365,4.49623,2680.3,2679.8,6.73155]
[1739441323875,3.7312,2680.2,2679.8,3.0]
[1739441324478,3.73121,2680.1,2679.8,3.0]
[1739441324875,8.22725,2680.3,2679.8,3.0]
[1739441325039,3.73114,2680.2,2679.8,3.0]
[1739441325241,3.73114,2680.2,2679.8,6.73158]
[1739441325884,3.73114,2680.2,2679.8,3.0]
[1739441326256,7.46229,2680.2,2679.8,3.0]
[1739441326451,3.73122,2680.1,2679.8,3.0]
[1739441326670,0.7653,2680.3,2679.8,3.0]
[1739441327079,3.7314,2680.0,2679.6,1.51692491]
[1739441327279,3.7314,2680.0,2679.6,0.7636]
[1739441327499,3.73149,2679.9,2679.6,0.7636]
[1739441327698,3.73197,2679.6,2679.2,0.7584]
[1739441328001,3.73197,2679.6,2679.3,1.2414646]
[1739441328204,0.8297,2680.0,2679.2,0.7584]
[1739441328345,3.73224,2679.4,2679.0,0.7511]
[1739441328538,0.8104,2679.5,2679.0,4.48379]
[1739441328539,4.5425,2679.5,2679.0,4.48379]
[1739441329192,4.54245,2679.5,2679.1,0.34857799]
[1739441329545,0.8104,2679.5,2679.1,0.34857799]
[1739441329750,4.54245,2679.5,2679.1,0.34857799]
[1739441329992,3.73217,2679.4,2679.1,0.34857799]
[1739441330673,4.54245,2679.5,2679.1,0.34857799]
[1739441330910,8.27461,2679.5,2679.1,0.34857799]
[1739441331211,3.7322,2679.4,2679.1,0.34857799]
[1739441331766,5.06488,2679.3,2679.1,0.34857799]
[1739441331969,3.73245,2679.2,2679.1,0.34857799]
[1739441332173,3.73245,2679.2,2678.8,0.34857799]
[1739441332854,5.06488,2679.3,2678.8,4.08154799]
[1739441333050,4.50742,2679.3,2678.9,0.7723]
[1739441334497,4.50742,2679.3,2678.9,4.50515]
[1739441335585,0.775,2679.3,2679.0,3.73272]
[1739441335773,3.7322,2679.4,2678.9,4.50515]
[1739441335981,4.49859,2679.5,2679.0,3.73273]
[1739441336505,3.73218,2679.4,2679.0,3.73273]
[1739441336905,4.49859,2679.5,2678.9,0.7723]
[1739441337107,3.73229,2679.4,2678.9,0.7723]
[1739441337611,3.73229,2679.4,2678.9,4.50517]
[1739441337775,0.7665,2679.5,2678.9,0.7723]
[1739441337982,4.4986,2679.5,2679.0,3.73259]
[1739441338607,3.73206,2679.5,2679.0,3.73259]
[1739441339103,3.73206,2679.5,2679.1,3.73258]
[1739441339304,0.0075,2679.6,2679.1,3.73247]
[1739441339305,0.272,2679.4,2679.1,3.73247]
[1739441339502,4.52888,2679.9,2679.4,3.7321]
[1739441339703,4.00363,2679.8,2679.3,4.519]
[1739441339882,0.272,2679.8,2679.4,3.73217]
[1739441340090,0.272,2679.8,2679.4,3.73211]
[1739441340394,4.00368,2679.8,2679.3,4.5191]
[1739441340582,3.73188,2679.7,2679.3,0.7868]
[1739441340781,4.00366,2679.8,2679.3,4.51908]
[1739441341085,7.73537,2679.8,2679.3,4.51908]
[1739441341285,7.73539,2679.8,2679.3,4.51908]
[1739441341627,4.5287,2680.0,2679.3,0.7868]
[1739441341809,0.272,2679.9,2679.5,3.73197]
[1739441341970,0.272,2679.9,2679.6,3.73189]
[1739441342309,0.272,2680.0,2679.7,0.8329]
[1739441342464,0.787,2680.5,2679.9,3.73148]
[1739441342670,0.787,2680.5,2679.7,3.7638]
[1739441342671,0.272,2680.4,2679.7,3.7638]
[1739441342870,0.272,2680.4,2680.1,4.49499]
[1739441343267,0.272,2680.4,2679.8,3.73158]
[1739441343471,0.272,2680.4,2679.9,4.48549]
[1739441343472,4.00283,2680.4,2679.9,4.48549]
[1739441343800,0.272,2680.4,2679.9,4.48549]
[1739441344010,0.272,2680.4,2680.1,3.7312]
[1739441344316,0.272,2680.4,2680.0,3.73134]
[1739441344523,4.00279,2680.4,2679.9,4.48549]
[1739441344689,4.00279,2680.4,2679.9,8.21687]
[1739441344886,0.272,2680.4,2680.0,3.73127]
[1739441345121,0.272,2680.4,2680.1,3.73113]
[1739441345498,0.272,2680.4,2680.1,3.73111]
[1739441346085,4.00281,2680.4,2679.9,4.48549]
[1739441346328,4.00281,2680.4,2679.9,0.7541]
[1739441346487,3.73107,2680.2,2679.7,4.51216]
[1739441346686,3.73107,2680.2,2679.8,3.73161]
[1739441346914,3.73107,2680.2,2679.7,4.51216]
[1739441346915,3.73107,2680.2,2679.7,7.51216]
[1739441347101,3.73107,2680.2,2679.7,11.24385]
[1739441347402,4.00281,2680.4,2679.7,5.26371783]
[1739441347403,0.272,2680.4,2679.7,5.26371783]
[1739441347588,0.272,2680.4,2680.1,0.8297]
[1739441347791,9.01059,2680.6,2680.1,0.8297]
[1739441348028,0.272,2680.5,2680.1,0.8297]
[1739441348340,4.00267,2680.5,2680.1,0.8297]
[1739441348625,0.272,2680.5,2680.1,0.8297]
[1739441348827,5.28,2680.6,2680.1,4.56089]
[1739441349043,0.272,2680.5,2680.2,3.73092]
[1739441349222,0.272,2680.6,2680.3,3.73083]
[1739441349392,0.272,2680.6,2680.5,3.73064]
[1739441349597,0.272,2680.6,2680.5,0.8181]
[1739441349794,5.28,2680.8,2680.5,0.8181]
[1739441350053,5.28,2680.8,2680.5,4.54862]
[1739441350739,5.28,2680.8,2680.5,0.8181]
[1739441351363,5.28,2681.1,2680.6,0.7562]
[1739441351540,0.272,2681.1,2680.9,3.72996]
[1739441351718,0.272,2681.4,2681.0,4.53472]
[1739441351921,0.272,2681.4,2681.0,4.53484]
[1739441352124,0.272,2681.4,2681.0,4.53478]
[1739441352321,0.272,2681.4,2681.1,3.72977]
[1739441352528,0.272,2681.4,2681.0,0.8049]
[1739441352730,0.272,2681.4,2681.0,4.53476]
[1739441353150,0.272,2681.4,2681.0,0.8049]
[1739441353450,0.272,2681.4,2681.0,4.53477]
[1739441354352,0.272,2681.4,2681.0,5.72013583]
[1739441354655,0.272,2681.4,2681.1,3.72981]
[1739441354829,0.272,2681.4,2681.0,5.72013583]
[1739441355942,0.272,2681.4,2681.0,1.99020583]
[1739441356141,0.272,2681.4,2681.0,0.8049]
[1739441356340,0.272,2681.4,2681.1,3.72978]
[1739441356525,0.272,2681.4,2681.0,0.8049]
[1739441356737,0.272,2681.4,2681.0,4.53476]
[1739441357452,0.272,2681.4,2681.2,3.72965]
[1739441358255,4.54423,2681.8,2681.3,3.72946]
[1739441358453,0.272,2681.7,2681.3,1.97709767]
[1739441358624,0.272,2681.7,2681.0,0.8049]
[1739441358826,3.72912,2681.6,2681.2,3.72953]
[1739441359256,4.00098,2681.7,2681.2,3.72953]
[1739441359563,4.00098,2681.7,2681.2,7.45911]
[1739441359728,3.72918,2681.6,2681.0,0.8049]
[1739441360065,3.72918,2681.6,2681.1,3.72971]
[1739441360271,7.45838,2681.6,2681.1,3.72971]